[Event "*** MasterClass Titled Tuesday Blitz"]
[Site "Chess.com"]
[Date "2017.07.04"]
[Round "3"]
[White "aspired"]
[Black "Keranke"]
[Result "0-1"]
[WhiteElo "2527"]
[BlackElo "2637"]
[TimeControl "180+2"]
[EndTime "13:37:38 PDT"]
[Termination "Keranke won by resignation"]

1. e4 {[%clk 0:03:01.9]} 1... g6 {[%clk 0:02:59.5]} 2. d4 {[%clk 0:03:02.2]}
2... Bg7 {[%clk 0:02:59.2]} 3. Nc3 {[%clk 0:03:03.7]} 3... d6 {[%clk 0:03:00.3]}
4. Be3 {[%clk 0:03:03]} 4... a6 {[%clk 0:03:00.8]} 5. Qd2 {[%clk 0:03:02.8]}
5... b5 {[%clk 0:03:01.9]} 6. h4 {[%clk 0:03:03.5]} 6... h6 {[%clk 0:03:02.3]}
7. a4 {[%clk 0:02:56.5]} 7... b4 {[%clk 0:03:02.8]} 8. Nd5 {[%clk 0:02:57.1]}
8... a5 {[%clk 0:03:03.4]} 9. h5 {[%clk 0:02:54.4]} 9... g5 {[%clk 0:03:04]} 10.
f4 {[%clk 0:02:46.8]} 10... gxf4 {[%clk 0:03:01.1]} 11. Bxf4 {[%clk 0:02:36.2]}
11... Bb7 {[%clk 0:03:01.4]} 12. O-O-O {[%clk 0:02:20.7]} 12... e6 {[%clk
0:02:47.6]} 13. Ne3 {[%clk 0:02:21]} 13... Bxe4 {[%clk 0:02:48.3]} 14. d5 {[%clk
0:02:16.4]} 14... Qf6 {[%clk 0:02:40.3]} 15. Nc4 {[%clk 0:01:58.3]} 15... Bxd5
{[%clk 0:02:40.5]} 16. Re1 {[%clk 0:01:31.6]} 16... Bxc4 {[%clk 0:02:30.5]} 17.
Bxc4 {[%clk 0:01:33.5]} 17... Qxb2+ {[%clk 0:02:31.5]} 18. Kd1 {[%clk 0:01:35]}
18... Qa1+ {[%clk 0:02:03]} 19. Ke2 {[%clk 0:01:32.7]} 19... Qc3 {[%clk
0:02:03.7]} 20. Bb5+ {[%clk 0:01:29.8]} 20... c6 {[%clk 0:01:51.9]} 21. Qxd6
{[%clk 0:01:25.7]} 21... cxb5 {[%clk 0:01:32.8]} 22. Rd1 {[%clk 0:01:26.6]}
22... Qc8 {[%clk 0:01:13.1]} 23. Nf3 {[%clk 0:01:13.7]} 23... Ne7 {[%clk
0:01:05.8]} 24. Be5 {[%clk 0:00:57.6]} 24... Nf5 {[%clk 0:01:02.7]} 25. Qd3
{[%clk 0:00:45.5]} 25... Qc4 {[%clk 0:01:01.3]} 26. Bxg7 {[%clk 0:00:41.9]}
26... Nxg7 {[%clk 0:01:03.2]} 27. axb5 {[%clk 0:00:41.7]} 27... Qxd3+ {[%clk
0:01:04]} 28. Rxd3 {[%clk 0:00:43.6]} 28... Nf5 {[%clk 0:00:59]} 29. Rhd1 {[%clk
0:00:41.8]} 29... O-O {[%clk 0:00:59.3]} 30. Ne5 {[%clk 0:00:35.6]} 30... a4
{[%clk 0:00:56.7]} 31. Rd8 {[%clk 0:00:21.3]} 31... a3 {[%clk 0:00:51.2]} 32. g4
{[%clk 0:00:16.4]} 32... Ne7 {[%clk 0:00:46.4]} 33. Rxf8+ {[%clk 0:00:11.9]}
33... Kxf8 {[%clk 0:00:48.3]} 34. Rd8+ {[%clk 0:00:12.9]} 34... Kg7 {[%clk
0:00:49.6]} 35. b6 {[%clk 0:00:10.8]} 35... a2 {[%clk 0:00:48.7]} 36. b7 {[%clk
0:00:11.9]} 36... a1=Q {[%clk 0:00:48.3]} 37. bxa8=Q {[%clk 0:00:11.1]} 37...
Qxa8 {[%clk 0:00:50.2]} 38. g5 {[%clk 0:00:09.4]} 38... Qe4+ {[%clk 0:00:50.8]}
39. Kd2 {[%clk 0:00:10.1]} 39... Qxe5 {[%clk 0:00:52.1]} 40. gxh6+ {[%clk
0:00:11.6]} 40... Kxh6 {[%clk 0:00:53.5]} 41. Rxb8 {[%clk 0:00:13.5]} 41... Qxb8
{[%clk 0:00:54.3]} 0-1

[Event "*** MasterClass Titled Tuesday Blitz"]
[Site "Chess.com"]
[Date "2017.07.04"]
[Round "3"]
[White "abubakrtagelsir"]
[Black "viggi38"]
[Result "0-1"]
[WhiteElo "2160"]
[BlackElo "2243"]
[TimeControl "180+2"]
[EndTime "13:37:56 PDT"]
[Termination "viggi38 won by resignation"]

1. e4 {[%clk 0:02:59.5]} 1... d5 {[%clk 0:02:58.3]} 2. exd5 {[%clk 0:02:59.8]}
2... Qxd5 {[%clk 0:03:00.2]} 3. Nc3 {[%clk 0:02:59.6]} 3... Qd6 {[%clk
0:03:00.6]} 4. d4 {[%clk 0:03:00.3]} 4... c6 {[%clk 0:03:01.2]} 5. Nf3 {[%clk
0:03:00.4]} 5... Bg4 {[%clk 0:03:01.5]} 6. Bc4 {[%clk 0:02:46.6]} 6... Nf6
{[%clk 0:02:58.6]} 7. O-O {[%clk 0:02:42.9]} 7... Bxf3 {[%clk 0:02:44.9]} 8.
Qxf3 {[%clk 0:02:42.5]} 8... Qxd4 {[%clk 0:02:45.3]} 9. Bb3 {[%clk 0:02:42.2]}
9... Qg4 {[%clk 0:02:38.9]} 10. Qe3 {[%clk 0:02:10.7]} 10... Nbd7 {[%clk
0:02:33.3]} 11. h3 {[%clk 0:02:06.5]} 11... Qg6 {[%clk 0:02:28.5]} 12. Re1
{[%clk 0:02:04.3]} 12... e6 {[%clk 0:02:17.7]} 13. Bxe6 {[%clk 0:01:51.9]} 13...
fxe6 {[%clk 0:02:19.6]} 14. Qxe6+ {[%clk 0:01:51.6]} 14... Kd8 {[%clk
0:02:20.1]} 15. Qb3 {[%clk 0:01:23.7]} 15... Nc5 {[%clk 0:01:41.5]} 16. Qc4
{[%clk 0:00:54.2]} 16... Nfd7 {[%clk 0:01:26.4]} 17. Bf4 {[%clk 0:00:43.3]}
17... Bd6 {[%clk 0:01:23.3]} 18. Bxd6 {[%clk 0:00:42.1]} 18... Qxd6 {[%clk
0:01:19.7]} 19. Rad1 {[%clk 0:00:42.1]} 19... b5 {[%clk 0:00:54.9]} 20. Qb4
{[%clk 0:00:16.8]} 20... Qf8 {[%clk 0:00:53.9]} 21. a4 {[%clk 0:00:12]} 21... a5
{[%clk 0:00:52.9]} 22. Qd4 {[%clk 0:00:10.7]} 22... b4 {[%clk 0:00:36]} 23. Ne4
{[%clk 0:00:10.8]} 23... Kc7 {[%clk 0:00:33.8]} 24. Ng5 {[%clk 0:00:07.1]} 24...
Qf6 {[%clk 0:00:29.1]} 25. Ne6+ {[%clk 0:00:06.8]} 25... Kc8 {[%clk 0:00:21.5]}
26. Qd6 {[%clk 0:00:06.2]} 26... Ra7 {[%clk 0:00:11.4]} 27. Qxc6+ {[%clk
0:00:03.9]} 27... Kb8 {[%clk 0:00:11.3]} 28. Nxc5 {[%clk 0:00:04.1]} 28... Qxc6
{[%clk 0:00:09.8]} 29. Nxd7+ {[%clk 0:00:05]} 29... Rxd7 {[%clk 0:00:11.7]} 30.
Rxd7 {[%clk 0:00:05.8]} 30... Qxd7 {[%clk 0:00:13.6]} 0-1

[Event "*** MasterClass Titled Tuesday Blitz"]
[Site "Chess.com"]
[Date "2017.07.04"]
[Round "3"]
[White "ChessQueen"]
[Black "Zufi1811"]
[Result "1-0"]
[WhiteElo "2517"]
[BlackElo "2376"]
[TimeControl "180+2"]
[EndTime "13:38:17 PDT"]
[Termination "ChessQueen won by resignation"]

1. e4 {[%clk 0:03:01.9]} 1... d5 {[%clk 0:02:58.1]} 2. exd5 {[%clk 0:03:02.6]}
2... Qxd5 {[%clk 0:03:00]} 3. Nc3 {[%clk 0:03:03.8]} 3... Qd6 {[%clk 0:03:01.4]}
4. Nf3 {[%clk 0:03:04.8]} 4... Nf6 {[%clk 0:03:02.3]} 5. g3 {[%clk 0:03:04.8]}
5... Bg4 {[%clk 0:03:01.5]} 6. Bg2 {[%clk 0:03:05.8]} 6... c6 {[%clk 0:03:02.7]}
7. O-O {[%clk 0:03:06.1]} 7... e6 {[%clk 0:03:02]} 8. h3 {[%clk 0:03:05.9]} 8...
Bxf3 {[%clk 0:03:01.6]} 9. Qxf3 {[%clk 0:03:06.2]} 9... Nbd7 {[%clk 0:03:02.4]}
10. b3 {[%clk 0:03:07.2]} 10... Be7 {[%clk 0:02:55.3]} 11. a4 {[%clk 0:03:07.8]}
11... Qc7 {[%clk 0:02:51.6]} 12. a5 {[%clk 0:03:05.8]} 12... a6 {[%clk
0:02:51.8]} 13. Re1 {[%clk 0:03:01.8]} 13... O-O {[%clk 0:02:51.5]} 14. Ra4
{[%clk 0:02:54.8]} 14... Rfe8 {[%clk 0:02:43.4]} 15. Bb2 {[%clk 0:02:54.8]}
15... Rad8 {[%clk 0:02:37.7]} 16. d3 {[%clk 0:02:48.3]} 16... Nd5 {[%clk
0:02:22.8]} 17. Ne4 {[%clk 0:02:32]} 17... N7f6 {[%clk 0:02:06.8]} 18. c4 {[%clk
0:02:24.1]} 18... Nxe4 {[%clk 0:01:57.9]} 19. dxe4 {[%clk 0:02:21.6]} 19... Nb4
{[%clk 0:01:50.6]} 20. Qc3 {[%clk 0:02:08.5]} 20... Bf6 {[%clk 0:01:05.9]} 21.
e5 {[%clk 0:02:08.7]} 21... Be7 {[%clk 0:01:03.6]} 22. Rxb4 {[%clk 0:02:08.5]}
22... Bxb4 {[%clk 0:01:04.9]} 23. Qxb4 {[%clk 0:02:09.1]} 23... Rd3 {[%clk
0:01:05.9]} 24. Be4 {[%clk 0:02:05.6]} 24... Rd7 {[%clk 0:01:03.8]} 25. Bc2
{[%clk 0:01:55]} 25... Red8 {[%clk 0:01:02.4]} 26. Qc3 {[%clk 0:01:54.1]} 26...
Rd2 {[%clk 0:00:40.1]} 27. Bc1 {[%clk 0:01:53]} 27... R2d7 {[%clk 0:00:38.1]}
28. Be3 {[%clk 0:01:42.8]} 28... c5 {[%clk 0:00:35.2]} 29. h4 {[%clk 0:01:44.2]}
29... h6 {[%clk 0:00:34.8]} 30. Ra1 {[%clk 0:01:38.6]} 30... Qc6 {[%clk
0:00:32.6]} 31. Bf4 {[%clk 0:01:23.3]} 31... Rd4 {[%clk 0:00:27.6]} 32. Re1
{[%clk 0:01:23.7]} 32... R8d7 {[%clk 0:00:20]} 33. Be3 {[%clk 0:01:22.5]} 33...
Rg4 {[%clk 0:00:15.9]} 34. Bd1 {[%clk 0:01:01.3]} 34... Rxd1 {[%clk 0:00:08.4]}
35. Rxd1 {[%clk 0:01:01.7]} 35... Qf3 {[%clk 0:00:09.7]} 36. Rd8+ {[%clk
0:00:55.7]} 36... Kh7 {[%clk 0:00:10.2]} 37. Qd3+ {[%clk 0:00:56]} 37... g6
{[%clk 0:00:11.1]} 38. Rd7 {[%clk 0:00:46.7]} 38... Kg7 {[%clk 0:00:07.1]} 39.
Bxh6+ {[%clk 0:00:46.8]} 1-0

[Event "*** MasterClass Titled Tuesday Blitz"]
[Site "Chess.com"]
[Date "2017.07.04"]
[Round "3"]
[White "hypert"]
[Black "Iball95"]
[Result "1/2-1/2"]
[WhiteElo "2340"]
[BlackElo "2530"]
[TimeControl "180+2"]
[EndTime "13:38:21 PDT"]
[Termination "Game drawn by agreement"]

1. e4 {[%clk 0:03:01.9]} 1... c5 {[%clk 0:03:00.5]} 2. Nf3 {[%clk 0:03:02.8]}
2... Nc6 {[%clk 0:03:01.8]} 3. Bb5 {[%clk 0:03:02.2]} 3... d6 {[%clk 0:03:01.8]}
4. O-O {[%clk 0:03:01.3]} 4... Bd7 {[%clk 0:03:01.6]} 5. Re1 {[%clk 0:02:59.6]}
5... Nf6 {[%clk 0:03:00.2]} 6. c3 {[%clk 0:03:00.2]} 6... a6 {[%clk 0:03:00.1]}
7. Ba4 {[%clk 0:03:01.3]} 7... b5 {[%clk 0:02:57.3]} 8. Bc2 {[%clk 0:03:01.9]}
8... Bg4 {[%clk 0:02:55.4]} 9. d3 {[%clk 0:03:02.9]} 9... g6 {[%clk 0:02:55.9]}
10. Nbd2 {[%clk 0:03:03.6]} 10... Bg7 {[%clk 0:02:56.3]} 11. h3 {[%clk
0:03:04.7]} 11... Bxf3 {[%clk 0:02:57.2]} 12. Nxf3 {[%clk 0:03:05.1]} 12... O-O
{[%clk 0:02:58.2]} 13. a4 {[%clk 0:03:05.5]} 13... b4 {[%clk 0:02:54.4]} 14. Bd2
{[%clk 0:03:04.9]} 14... Nd7 {[%clk 0:02:54.1]} 15. Rb1 {[%clk 0:02:58.5]} 15...
Rb8 {[%clk 0:02:53.3]} 16. Qc1 {[%clk 0:02:49]} 16... Qa5 {[%clk 0:02:46.1]} 17.
c4 {[%clk 0:02:43.9]} 17... Qc7 {[%clk 0:02:39.3]} 18. b3 {[%clk 0:02:44.7]}
18... Nd4 {[%clk 0:02:38.2]} 19. Nxd4 {[%clk 0:02:43.5]} 19... Bxd4 {[%clk
0:02:39.7]} 20. Bd1 {[%clk 0:02:40.5]} 20... Ne5 {[%clk 0:02:37.3]} 21. Be2
{[%clk 0:02:40]} 21... Nc6 {[%clk 0:02:37.4]} 22. Rf1 {[%clk 0:02:36.5]} 22...
Bg7 {[%clk 0:02:24]} 23. Be3 {[%clk 0:02:36.7]} 23... f5 {[%clk 0:02:24.3]} 24.
Kh1 {[%clk 0:02:28.8]} 24... f4 {[%clk 0:02:12.1]} 25. Bxf4 {[%clk 0:02:23]}
25... Nd4 {[%clk 0:02:09.9]} 26. Bd1 {[%clk 0:02:20.1]} 26... Rf7 {[%clk
0:01:59.1]} 27. Be3 {[%clk 0:02:19]} 27... Rbf8 {[%clk 0:01:58.2]} 28. Bg4
{[%clk 0:02:02.9]} 28... h5 {[%clk 0:01:27.6]} 29. Bd1 {[%clk 0:01:47.4]} 29...
Qd7 {[%clk 0:01:21.6]} 30. f4 {[%clk 0:01:47.4]} 30... h4 {[%clk 0:00:58.8]} 31.
Bg4 {[%clk 0:01:44.3]} 31... e6 {[%clk 0:00:59.8]} 32. Bxd4 {[%clk 0:01:30.9]}
32... Bxd4 {[%clk 0:01:01.2]} 33. Rf3 {[%clk 0:01:28.8]} 33... Qe7 {[%clk
0:01:00.8]} 34. Qd2 {[%clk 0:01:25.2]} 34... Kg7 {[%clk 0:00:59.6]} 35. Rbf1
{[%clk 0:01:24.3]} 35... Rf6 {[%clk 0:01:00.1]} 36. Qe1 {[%clk 0:01:16.8]} 36...
R6f7 {[%clk 0:00:57.8]} 37. g3 {[%clk 0:01:01.4]} 37... hxg3 {[%clk 0:00:57]}
38. Qxg3 {[%clk 0:01:02.2]} 38... Rh8 {[%clk 0:00:55.5]} 39. f5 {[%clk
0:00:52.4]} 39... exf5 {[%clk 0:00:56.8]} 40. Bxf5 {[%clk 0:00:40.3]} 40... Rh6
{[%clk 0:00:51.8]} 41. Bg4 {[%clk 0:00:34.4]} 41... Rxf3 {[%clk 0:00:51.3]} 42.
Qxf3 {[%clk 0:00:36]} 42... Be5 {[%clk 0:00:46.5]} 43. Be6 {[%clk 0:00:24.5]}
43... g5 {[%clk 0:00:27.9]} 44. Bg4 {[%clk 0:00:19.8]} 44... Rf6 {[%clk
0:00:25.1]} 45. Qg2 {[%clk 0:00:20]} 45... a5 {[%clk 0:00:24.1]} 46. Rxf6 {[%clk
0:00:20.2]} 46... Qxf6 {[%clk 0:00:25.3]} 47. Qf3 {[%clk 0:00:21.8]} 47... Qxf3+
{[%clk 0:00:25.1]} 48. Bxf3 {[%clk 0:00:23.7]} 1/2-1/2

[Event "*** MasterClass Titled Tuesday Blitz"]
[Site "Chess.com"]
[Date "2017.07.04"]
[Round "3"]
[White "wonderfultime"]
[Black "NMJeevanK"]
[Result "1-0"]
[WhiteElo "2657"]
[BlackElo "2343"]
[TimeControl "180+2"]
[EndTime "13:38:44 PDT"]
[Termination "wonderfultime won by resignation"]

1. d4 {[%clk 0:02:20.8]} 1... d5 {[%clk 0:02:58.1]} 2. c4 {[%clk 0:02:21.9]}
2... c6 {[%clk 0:02:59.5]} 3. Nc3 {[%clk 0:02:22.6]} 3... Nf6 {[%clk 0:03:01.1]}
4. e3 {[%clk 0:02:23.7]} 4... dxc4 {[%clk 0:03:02.5]} 5. Bxc4 {[%clk 0:02:24.5]}
5... e6 {[%clk 0:03:04.4]} 6. Nf3 {[%clk 0:02:25.5]} 6... Be7 {[%clk 0:03:05.6]}
7. O-O {[%clk 0:02:26.4]} 7... Nbd7 {[%clk 0:03:06.8]} 8. Qe2 {[%clk 0:02:27.7]}
8... Qc7 {[%clk 0:03:05.7]} 9. e4 {[%clk 0:02:28.4]} 9... e5 {[%clk 0:02:59.9]}
10. Bg5 {[%clk 0:02:24.7]} 10... O-O {[%clk 0:02:57.4]} 11. Rac1 {[%clk
0:02:24.5]} 11... h6 {[%clk 0:02:40.8]} 12. Bh4 {[%clk 0:02:23.9]} 12... Qa5
{[%clk 0:02:19.7]} 13. Rfd1 {[%clk 0:02:19.3]} 13... Re8 {[%clk 0:02:16.3]} 14.
h3 {[%clk 0:02:08.2]} 14... b5 {[%clk 0:02:09.8]} 15. Bb3 {[%clk 0:01:44.5]}
15... b4 {[%clk 0:02:05.1]} 16. Nb1 {[%clk 0:01:42.5]} 16... Ba6 {[%clk
0:02:01.6]} 17. Qe3 {[%clk 0:01:37.9]} 17... exd4 {[%clk 0:01:54.3]} 18. Nxd4
{[%clk 0:01:39.8]} 18... Bc5 {[%clk 0:01:43.4]} 19. Nd2 {[%clk 0:01:34]} 19...
Qb6 {[%clk 0:01:36.1]} 20. Rxc5 {[%clk 0:01:02.3]} 20... Qxc5 {[%clk 0:01:35.1]}
21. Bg3 {[%clk 0:00:43.6]} 21... Qh5 {[%clk 0:01:15.5]} 22. Rc1 {[%clk
0:00:35.9]} 22... c5 {[%clk 0:01:11.6]} 23. Nf5 {[%clk 0:00:20.7]} 23... c4
{[%clk 0:00:43.7]} 24. Bxc4 {[%clk 0:00:18.4]} 24... Bxc4 {[%clk 0:00:42.7]} 25.
Rxc4 {[%clk 0:00:20.3]} 25... Nb6 {[%clk 0:00:34.9]} 26. Rc5 {[%clk 0:00:18.5]}
26... Qd1+ {[%clk 0:00:31.8]} 27. Kh2 {[%clk 0:00:19.3]} 27... Rad8 {[%clk
0:00:32.8]} 28. Nxh6+ {[%clk 0:00:12.1]} 28... Kf8 {[%clk 0:00:20.3]} 29. Rc7
{[%clk 0:00:11.3]} 29... Rd7 {[%clk 0:00:13.4]} 30. Rxd7 {[%clk 0:00:10.2]}
30... Nbxd7 {[%clk 0:00:13.8]} 31. Bd6+ {[%clk 0:00:11.2]} 31... Re7 {[%clk
0:00:15.2]} 32. Nf5 {[%clk 0:00:11.1]} 32... Nd5 {[%clk 0:00:12.4]} 33. Qd4
{[%clk 0:00:07.3]} 33... N7b6 {[%clk 0:00:07.2]} 34. Bxe7+ {[%clk 0:00:07.1]}
34... Ke8 {[%clk 0:00:06.9]} 35. exd5 {[%clk 0:00:08.1]} 35... Qe2 {[%clk
0:00:07.6]} 36. d6 {[%clk 0:00:08.6]} 36... Kd7 {[%clk 0:00:07.6]} 37. Ng3
{[%clk 0:00:08.7]} 37... Qe6 {[%clk 0:00:08.2]} 38. Nde4 {[%clk 0:00:09.9]}
38... Qd5 {[%clk 0:00:09.3]} 39. Qxg7 {[%clk 0:00:10.5]} 39... Qxa2 {[%clk
0:00:09]} 40. h4 {[%clk 0:00:11.1]} 40... Qc4 {[%clk 0:00:09.3]} 41. h5 {[%clk
0:00:12.2]} 41... Nd5 {[%clk 0:00:09.4]} 42. h6 {[%clk 0:00:13.5]} 42... Nf4
{[%clk 0:00:10.7]} 43. Qg4+ {[%clk 0:00:12.6]} 43... Ne6 {[%clk 0:00:10.9]} 44.
h7 {[%clk 0:00:13.7]} 44... Qc1 {[%clk 0:00:11.4]} 45. h8=Q {[%clk 0:00:14.2]}
1-0

[Event "*** MasterClass Titled Tuesday Blitz"]
[Site "Chess.com"]
[Date "2017.07.04"]
[Round "3"]
[White "popov_m"]
[Black "vovkcoach"]
[Result "1-0"]
[WhiteElo "2392"]
[BlackElo "2514"]
[TimeControl "180+2"]
[EndTime "13:39:01 PDT"]
[Termination "popov_m won on time"]

1. d4 {[%clk 0:03:01.9]} 1... Nf6 {[%clk 0:03:00.7]} 2. Bf4 {[%clk 0:03:02.3]}
2... g6 {[%clk 0:03:01.4]} 3. Nf3 {[%clk 0:03:03]} 3... Bg7 {[%clk 0:03:02.6]}
4. e3 {[%clk 0:03:04.1]} 4... O-O {[%clk 0:03:03.8]} 5. Be2 {[%clk 0:03:04.8]}
5... c5 {[%clk 0:03:04.5]} 6. c3 {[%clk 0:03:05.5]} 6... cxd4 {[%clk 0:03:03.8]}
7. exd4 {[%clk 0:03:05.2]} 7... b6 {[%clk 0:03:04.5]} 8. O-O {[%clk 0:03:05.5]}
8... Bb7 {[%clk 0:03:05.7]} 9. Nbd2 {[%clk 0:03:07.2]} 9... d6 {[%clk
0:03:06.8]} 10. a4 {[%clk 0:03:07.2]} 10... a6 {[%clk 0:03:07.7]} 11. Re1 {[%clk
0:03:04.2]} 11... Nbd7 {[%clk 0:03:08.7]} 12. h3 {[%clk 0:03:03]} 12... Nd5
{[%clk 0:03:05.3]} 13. Bg3 {[%clk 0:03:01.8]} 13... Bh6 {[%clk 0:03:05.6]} 14.
Bf1 {[%clk 0:02:46.7]} 14... N7f6 {[%clk 0:03:03.5]} 15. Qb3 {[%clk 0:02:41.8]}
15... Nf4 {[%clk 0:02:51.5]} 16. a5 {[%clk 0:02:32.2]} 16... b5 {[%clk
0:02:37.7]} 17. c4 {[%clk 0:02:25]} 17... Rb8 {[%clk 0:01:49.9]} 18. cxb5 {[%clk
0:02:15.8]} 18... Bd5 {[%clk 0:01:50.2]} 19. Qa3 {[%clk 0:01:31.4]} 19... axb5
{[%clk 0:01:49.2]} 20. a6 {[%clk 0:01:32.4]} 20... N6h5 {[%clk 0:01:26.2]} 21.
Bh2 {[%clk 0:01:24.8]} 21... e5 {[%clk 0:01:18.1]} 22. a7 {[%clk 0:00:56.9]}
22... Ra8 {[%clk 0:01:14.3]} 23. dxe5 {[%clk 0:00:58.2]} 23... Nxh3+ {[%clk
0:00:18.2]} 24. gxh3 {[%clk 0:00:56.2]} 24... Rxa7 {[%clk 0:00:17.3]} 25. Qxa7
{[%clk 0:00:38.2]} 25... Bxd2 {[%clk 0:00:16.7]} 26. Re3 {[%clk 0:00:35.2]}
26... Bxe3 {[%clk 0:00:11.9]} 27. Qxe3 {[%clk 0:00:37.1]} 27... dxe5 {[%clk
0:00:12]} 28. Rd1 {[%clk 0:00:34.3]} 28... Qa8 {[%clk 0:00:07]} 29. Nxe5 {[%clk
0:00:30.8]} 29... Re8 {[%clk 0:00:07.6]} 30. Qd4 {[%clk 0:00:29.3]} 30... Be6
{[%clk 0:00:07.3]} 31. Ng4 {[%clk 0:00:28.8]} 31... Bxg4 {[%clk 0:00:07.6]} 32.
hxg4 {[%clk 0:00:28.4]} 32... Ng7 {[%clk 0:00:08.9]} 33. Bg2 {[%clk 0:00:29.5]}
33... Qa2 {[%clk 0:00:08.9]} 34. Qd7 {[%clk 0:00:26.9]} 34... Rf8 {[%clk
0:00:07.6]} 35. Qxb5 {[%clk 0:00:26.7]} 35... Ne6 {[%clk 0:00:07.3]} 36. Qe2
{[%clk 0:00:18.5]} 36... Qb3 {[%clk 0:00:06.3]} 37. Be5 {[%clk 0:00:16.7]} 37...
Re8 {[%clk 0:00:06.1]} 38. Bc3 {[%clk 0:00:15.8]} 38... Qa4 {[%clk 0:00:05.2]}
39. Re1 {[%clk 0:00:15.9]} 39... h6 {[%clk 0:00:04]} 40. Qe5 {[%clk 0:00:16.5]}
40... Kh7 {[%clk 0:00:03.9]} 41. Qf6 {[%clk 0:00:15.9]} 41... Qa7 {[%clk
0:00:02.8]} 42. Bd5 {[%clk 0:00:09.4]} 1-0

[Event "*** MasterClass Titled Tuesday Blitz"]
[Site "Chess.com"]
[Date "2017.07.04"]
[Round "3"]
[White "DanielRensch"]
[Black "JeffReinberg"]
[Result "0-1"]
[WhiteElo "2399"]
[BlackElo "2473"]
[TimeControl "180+2"]
[EndTime "13:39:05 PDT"]
[Termination "JeffReinberg won by resignation"]

1. e4 {[%clk 0:03:01.9]} 1... c5 {[%clk 0:03:00.6]} 2. Nf3 {[%clk 0:03:02.8]}
2... g6 {[%clk 0:03:00.4]} 3. d4 {[%clk 0:03:04.7]} 3... cxd4 {[%clk 0:03:01.7]}
4. Nxd4 {[%clk 0:03:06.6]} 4... Nf6 {[%clk 0:03:02.9]} 5. Nc3 {[%clk 0:03:07.1]}
5... d6 {[%clk 0:03:04]} 6. Be3 {[%clk 0:03:07.4]} 6... Bg7 {[%clk 0:03:04.8]}
7. f3 {[%clk 0:03:08.4]} 7... O-O {[%clk 0:03:05.8]} 8. Qd2 {[%clk 0:03:06.2]}
8... Nc6 {[%clk 0:03:07]} 9. O-O-O {[%clk 0:03:05]} 9... d5 {[%clk 0:03:08]} 10.
exd5 {[%clk 0:03:05.7]} 10... Nxd5 {[%clk 0:03:09.9]} 11. Nxc6 {[%clk
0:03:06.7]} 11... bxc6 {[%clk 0:03:11.6]} 12. Bd4 {[%clk 0:03:08.1]} 12... Nxc3
{[%clk 0:03:12.1]} 13. Qxc3 {[%clk 0:03:08.4]} 13... Bh6+ {[%clk 0:03:13.1]} 14.
Be3 {[%clk 0:02:53.8]} 14... Bxe3+ {[%clk 0:03:12.7]} 15. Qxe3 {[%clk
0:02:55.7]} 15... Qb6 {[%clk 0:03:13.8]} 16. Qxe7 {[%clk 0:02:51.6]} 16... Be6
{[%clk 0:03:14]} 17. Qa3 {[%clk 0:02:49.6]} 17... Rfd8 {[%clk 0:03:14.2]} 18.
Bd3 {[%clk 0:02:49.4]} 18... Rd5 {[%clk 0:03:12.3]} 19. b3 {[%clk 0:02:45]}
19... Qf2 {[%clk 0:03:02.3]} 20. Rd2 {[%clk 0:02:43.9]} 20... Qe3 {[%clk
0:03:00.9]} 21. Rd1 {[%clk 0:02:28.6]} 21... Rad8 {[%clk 0:03:00.4]} 22. Kb1
{[%clk 0:02:28.9]} 22... Bf5 {[%clk 0:02:49.9]} 23. Re2 {[%clk 0:01:36.4]} 23...
Qb6 {[%clk 0:02:27.9]} 24. Rde1 {[%clk 0:01:34.8]} 24... Rxd3 {[%clk 0:01:19.1]}
25. Re8+ {[%clk 0:01:09.1]} 25... Kg7 {[%clk 0:01:20.2]} 26. Qf8+ {[%clk
0:01:08.3]} 26... Kf6 {[%clk 0:01:19.1]} 27. Qe7+ {[%clk 0:01:00.1]} 27... Kg7
{[%clk 0:01:12.2]} 28. Qf8+ {[%clk 0:00:22.3]} 28... Kf6 {[%clk 0:01:11.8]} 29.
Qh8+ {[%clk 0:00:23.1]} 29... Kg5 {[%clk 0:01:08.1]} 30. h4+ {[%clk 0:00:24.1]}
30... Kxh4 {[%clk 0:00:57.7]} 31. Qf6+ {[%clk 0:00:21.4]} 31... g5 {[%clk
0:00:34.7]} 32. Rh1+ {[%clk 0:00:21.1]} 32... Kg3 {[%clk 0:00:30.9]} 33. Qxg5+
{[%clk 0:00:22.4]} 33... Kf2 {[%clk 0:00:25.5]} 34. Qh4+ {[%clk 0:00:22.9]}
34... Kxg2 {[%clk 0:00:14.2]} 35. Rh2+ {[%clk 0:00:22.3]} 35... Kxf3 {[%clk
0:00:02.8]} 36. Qh5+ {[%clk 0:00:22.9]} 36... Bg4 {[%clk 0:00:03.4]} 37. Qxf7+
{[%clk 0:00:22.6]} 37... Kg3 {[%clk 0:00:03.9]} 38. cxd3 {[%clk 0:00:13.8]}
38... Qg1+ {[%clk 0:00:03.7]} 39. Kb2 {[%clk 0:00:14.2]} 39... Qxh2+ {[%clk
0:00:03.6]} 40. Ka3 {[%clk 0:00:15.7]} 40... Rxe8 {[%clk 0:00:04.7]} 41. Qxe8
{[%clk 0:00:17]} 41... Qf2 {[%clk 0:00:06.3]} 42. Qb8+ {[%clk 0:00:16.6]} 42...
Qf4 {[%clk 0:00:05.7]} 43. Qxa7 {[%clk 0:00:17.2]} 43... h5 {[%clk 0:00:06.9]}
44. Qg1+ {[%clk 0:00:16.3]} 44... Kh4 {[%clk 0:00:08.4]} 45. d4 {[%clk
0:00:16.8]} 45... Kg5 {[%clk 0:00:08.7]} 46. Kb4 {[%clk 0:00:17.3]} 46... h4
{[%clk 0:00:08.9]} 47. a4 {[%clk 0:00:17.5]} 47... h3 {[%clk 0:00:10.1]} 48. a5
{[%clk 0:00:18.7]} 48... h2 {[%clk 0:00:11.2]} 49. Qh1 {[%clk 0:00:19.9]} 49...
Bf3 {[%clk 0:00:11.2]} 50. Qe1 {[%clk 0:00:16.4]} 50... h1=Q {[%clk 0:00:10.8]}
51. Qe7+ {[%clk 0:00:17.3]} 51... Qf6 {[%clk 0:00:11.1]} 52. Qc5+ {[%clk
0:00:16.6]} 52... Bd5 {[%clk 0:00:11.1]} 53. a6 {[%clk 0:00:16.4]} 53... Qe1+
{[%clk 0:00:10.2]} 0-1